[Event "Early-Titled-Tuesday-Blitz-April-23-2024"]
[Site "Chess.com"]
[Date "2024.04.23"]
[Round "6"]
[White "JiaHaoxiang"]
[Black "joshdaruca"]
[Result "1/2-1/2"]
[WhiteElo "2583"]
[BlackElo "2752"]
[TimeControl "180+1"]
[EndTime "9:09:46 PDT"]
[Termination "Game drawn - insufficient material"]

1. d4 {[%clk 0:03:00.9]} 1... Nf6 {[%clk 0:02:50]} 2. Nf3 {[%clk 0:02:59.1]}
2... e6 {[%clk 0:02:50.3]} 3. c4 {[%clk 0:02:58.2]} 3... d5 {[%clk 0:02:50.8]}
4. g3 {[%clk 0:02:58.4]} 4... dxc4 {[%clk 0:02:47.5]} 5. Bg2 {[%clk 0:02:58.8]}
5... Nc6 {[%clk 0:02:48]} 6. Qa4 {[%clk 0:02:58.8]} 6... Be7 {[%clk 0:02:31.6]}
7. Ne5 {[%clk 0:02:48.3]} 7... O-O {[%clk 0:02:31.6]} 8. Nxc6 {[%clk 0:02:47.5]}
8... bxc6 {[%clk 0:02:31.9]} 9. Qxc4 {[%clk 0:02:45.6]} 9... Rb8 {[%clk
0:02:27.3]} 10. a3 {[%clk 0:02:37.4]} 10... Rb6 {[%clk 0:02:18.1]} 11. Nc3
{[%clk 0:02:30.4]} 11... Ba6 {[%clk 0:02:17.4]} 12. Qa4 {[%clk 0:02:30.6]} 12...
Nd5 {[%clk 0:02:17.9]} 13. Qc2 {[%clk 0:02:17.8]} 13... Nxc3 {[%clk 0:02:11.6]}
14. bxc3 {[%clk 0:02:17.9]} 14... c5 {[%clk 0:02:11.9]} 15. O-O {[%clk
0:02:15.4]} 15... cxd4 {[%clk 0:02:07.9]} 16. cxd4 {[%clk 0:02:15.3]} 16... Bf6
{[%clk 0:02:02]} 17. Rd1 {[%clk 0:02:13.1]} 17... Qb8 {[%clk 0:01:46.6]} 18. Bf4
{[%clk 0:01:58.7]} 18... Rb2 {[%clk 0:01:41.7]} 19. Qxc7 {[%clk 0:01:58.2]}
19... Qxc7 {[%clk 0:01:41.7]} 20. Bxc7 {[%clk 0:01:59.1]} 20... Bxe2 {[%clk
0:01:42.2]} 21. Rdb1 {[%clk 0:01:27.7]} 21... Rxb1+ {[%clk 0:01:39.5]} 22. Rxb1
{[%clk 0:01:28.5]} 22... Bxd4 {[%clk 0:01:39.9]} 23. Bd6 {[%clk 0:01:20]} 23...
Rd8 {[%clk 0:01:33.7]} 24. Be7 {[%clk 0:01:18.9]} 24... Rc8 {[%clk 0:01:33.6]}
25. Bb7 {[%clk 0:01:18.1]} 25... Rc7 {[%clk 0:01:23.8]} 26. Bd6 {[%clk
0:01:17.4]} 26... Rc2 {[%clk 0:01:16.2]} 27. Be4 {[%clk 0:01:15.4]} 27... Rb2
{[%clk 0:01:16.5]} 28. Rc1 {[%clk 0:01:12.7]} 28... f5 {[%clk 0:01:13.5]} 29.
Rc8+ {[%clk 0:00:54.3]} 29... Kf7 {[%clk 0:01:13.6]} 30. Rc7+ {[%clk 0:00:51.1]}
30... Kf6 {[%clk 0:01:13.4]} 31. Bc2 {[%clk 0:00:44.4]} 31... Bf3 {[%clk
0:00:36.5]} 32. Kf1 {[%clk 0:00:19.4]} 32... Ra2 {[%clk 0:00:28.7]} 33. Ke1
{[%clk 0:00:18.7]} 33... Ra1+ {[%clk 0:00:28.2]} 34. Kd2 {[%clk 0:00:19.2]}
34... Bxf2 {[%clk 0:00:28.3]} 35. Be7+ {[%clk 0:00:19.3]} 35... Kg6 {[%clk
0:00:28]} 36. Bb3 {[%clk 0:00:19.4]} 36... Bd5 {[%clk 0:00:25.4]} 37. Bxd5
{[%clk 0:00:18.9]} 37... exd5 {[%clk 0:00:26.3]} 38. Bf8 {[%clk 0:00:19.5]}
38... Bd4 {[%clk 0:00:26.2]} 39. Rd7 {[%clk 0:00:20]} 39... Bf6 {[%clk
0:00:26.1]} 40. Rxd5 {[%clk 0:00:19.8]} 40... Ra2+ {[%clk 0:00:26.8]} 41. Kd3
{[%clk 0:00:19]} 41... Rxh2 {[%clk 0:00:27.7]} 42. Ra5 {[%clk 0:00:19.5]} 42...
Rg2 {[%clk 0:00:25.2]} 43. Bd6 {[%clk 0:00:19.7]} 43... h5 {[%clk 0:00:20.7]}
44. Rxa7 {[%clk 0:00:19.8]} 44... h4 {[%clk 0:00:21.4]} 45. gxh4 {[%clk
0:00:19.8]} 45... Bxh4 {[%clk 0:00:22.3]} 46. Be5 {[%clk 0:00:20.3]} 46... Bf6
{[%clk 0:00:21.8]} 47. Ra6 {[%clk 0:00:20.3]} 47... Kg5 {[%clk 0:00:19.2]} 48.
Bxf6+ {[%clk 0:00:20.7]} 48... gxf6 {[%clk 0:00:20.1]} 49. Ke3 {[%clk
0:00:20.8]} 49... f4+ {[%clk 0:00:19.3]} 50. Kf3 {[%clk 0:00:21.2]} 50... Rg3+
{[%clk 0:00:20.2]} 51. Kf2 {[%clk 0:00:21.7]} 51... Rb3 {[%clk 0:00:20.4]} 52.
a4 {[%clk 0:00:21.9]} 52... Kg4 {[%clk 0:00:20.1]} 53. Rxf6 {[%clk 0:00:22]}
53... Rb2+ {[%clk 0:00:21]} 54. Ke1 {[%clk 0:00:21.4]} 54... Kg3 {[%clk
0:00:18.2]} 55. a5 {[%clk 0:00:19.8]} 55... Ra2 {[%clk 0:00:16.9]} 56. a6 {[%clk
0:00:19.2]} 56... Ra1+ {[%clk 0:00:16.2]} 57. Ke2 {[%clk 0:00:19.2]} 57... Ra2+
{[%clk 0:00:17.1]} 58. Ke1 {[%clk 0:00:19.7]} 58... Kf3 {[%clk 0:00:17.7]} 59.
Rg6 {[%clk 0:00:16]} 59... Ra1+ {[%clk 0:00:17.9]} 60. Kd2 {[%clk 0:00:16.6]}
60... Kf2 {[%clk 0:00:18.6]} 61. Kc3 {[%clk 0:00:17.1]} 61... f3 {[%clk
0:00:17.4]} 62. Kb4 {[%clk 0:00:17.6]} 62... Ke2 {[%clk 0:00:15.8]} 63. Kb5
{[%clk 0:00:17.7]} 63... Ra3 {[%clk 0:00:14.7]} 64. Rf6 {[%clk 0:00:17.6]} 64...
f2 {[%clk 0:00:15.1]} 65. Rxf2+ {[%clk 0:00:17.9]} 65... Kxf2 {[%clk 0:00:15.9]}
66. Kb6 {[%clk 0:00:18.6]} 66... Rb3+ {[%clk 0:00:16.2]} 67. Kc7 {[%clk
0:00:18.4]} 67... Ra3 {[%clk 0:00:17.1]} 68. Kb7 {[%clk 0:00:18.5]} 68... Ke3
{[%clk 0:00:17.7]} 69. a7 {[%clk 0:00:18.8]} 69... Kd4 {[%clk 0:00:18.6]} 70.
a8=Q {[%clk 0:00:18.9]} 70... Rxa8 {[%clk 0:00:19.3]} 71. Kxa8 {[%clk
0:00:19.8]} 1/2-1/2

[Event "Early-Titled-Tuesday-Blitz-April-23-2024"]
[Site "Chess.com"]
[Date "2024.04.23"]
[Round "6"]
[White "eljanov"]
[Black "frederiksvane"]
[Result "1-0"]
[WhiteElo "2914"]
[BlackElo "3028"]
[TimeControl "180+1"]
[EndTime "9:09:50 PDT"]
[Termination "eljanov won by resignation"]

1. Nf3 {[%clk 0:03:00.9]} 1... c6 {[%clk 0:02:56.2]} 2. g3 {[%clk 0:02:59.6]}
2... d5 {[%clk 0:02:56.7]} 3. c4 {[%clk 0:02:58.7]} 3... Nf6 {[%clk 0:02:40.3]}
4. Bg2 {[%clk 0:02:58.9]} 4... e6 {[%clk 0:02:40.8]} 5. O-O {[%clk 0:02:56.9]}
5... Be7 {[%clk 0:02:41.1]} 6. Qc2 {[%clk 0:02:49]} 6... O-O {[%clk 0:02:41]} 7.
b3 {[%clk 0:02:48.4]} 7... b6 {[%clk 0:02:38.3]} 8. Rd1 {[%clk 0:02:43.9]} 8...
Nbd7 {[%clk 0:02:36.6]} 9. Nc3 {[%clk 0:02:43]} 9... Ba6 {[%clk 0:02:33.3]} 10.
d3 {[%clk 0:02:41.3]} 10... Rc8 {[%clk 0:02:31.1]} 11. e4 {[%clk 0:02:40]} 11...
dxe4 {[%clk 0:02:18.6]} 12. dxe4 {[%clk 0:02:40]} 12... Qc7 {[%clk 0:02:16.3]}
13. Nh4 {[%clk 0:02:16.1]} 13... Rfd8 {[%clk 0:02:08.8]} 14. h3 {[%clk
0:02:09.3]} 14... Bc5 {[%clk 0:01:54.1]} 15. Na4 {[%clk 0:02:02]} 15... Bf8
{[%clk 0:01:54]} 16. f4 {[%clk 0:02:01.9]} 16... e5 {[%clk 0:01:52.3]} 17. Rf1
{[%clk 0:01:49.8]} 17... b5 {[%clk 0:01:49.5]} 18. Nb2 {[%clk 0:01:49.8]} 18...
Nc5 {[%clk 0:01:26]} 19. fxe5 {[%clk 0:01:35.4]} 19... Qxe5 {[%clk 0:01:25.3]}
20. Bf4 {[%clk 0:01:35.9]} 20... Qd4+ {[%clk 0:01:18.5]} 21. Kh2 {[%clk
0:01:36.2]} 21... bxc4 {[%clk 0:01:17.8]} 22. Nf5 {[%clk 0:01:18.7]} 22... cxb3
{[%clk 0:01:08.4]} 23. axb3 {[%clk 0:01:19.6]} 23... Qb4 {[%clk 0:01:07.1]} 24.
Rxa6 {[%clk 0:01:06.2]} 24... Nxa6 {[%clk 0:01:05.8]} 25. e5 {[%clk 0:01:00.4]}
25... Nd5 {[%clk 0:01:02.4]} 26. Bg5 {[%clk 0:01:00.8]} 26... Re8 {[%clk
0:00:54.7]} 27. Nc4 {[%clk 0:01:01]} 27... Rb8 {[%clk 0:00:36]} 28. Qf2 {[%clk
0:00:53.7]} 28... Qb7 {[%clk 0:00:19.6]} 29. Nfd6 {[%clk 0:00:50.4]} 29... Bxd6
{[%clk 0:00:14.9]} 30. Nxd6 {[%clk 0:00:51.3]} 30... Qd7 {[%clk 0:00:15.3]} 31.
Nxe8 {[%clk 0:00:35.7]} 31... Rxe8 {[%clk 0:00:16.2]} 32. Ra1 {[%clk 0:00:35.6]}
32... Nac7 {[%clk 0:00:07.3]} 33. Rxa7 {[%clk 0:00:35.5]} 33... h6 {[%clk
0:00:06.6]} 34. Bf4 {[%clk 0:00:32.8]} 34... Qc8 {[%clk 0:00:06.8]} 35. h4
{[%clk 0:00:24.5]} 35... Rf8 {[%clk 0:00:05.4]} 36. Bd2 {[%clk 0:00:23.2]} 36...
Qb8 {[%clk 0:00:04.9]} 37. Ra3 {[%clk 0:00:17.7]} 37... Ne6 {[%clk 0:00:05.3]}
38. Qf5 {[%clk 0:00:15.1]} 38... Ne7 {[%clk 0:00:04.6]} 39. Qe4 {[%clk
0:00:14.6]} 39... Rd8 {[%clk 0:00:05.2]} 40. Be3 {[%clk 0:00:11.6]} 40... Nd5
{[%clk 0:00:04.1]} 41. Bf2 {[%clk 0:00:11.5]} 41... Nc3 {[%clk 0:00:04.4]} 42.
Qxc6 {[%clk 0:00:10.6]} 42... Nb5 {[%clk 0:00:02.2]} 43. Ra8 {[%clk 0:00:10.2]}
43... Qxa8 {[%clk 0:00:02.5]} 44. Qxa8 {[%clk 0:00:11.1]} 44... Rxa8 {[%clk
0:00:03.1]} 45. Bxa8 {[%clk 0:00:11.2]} 45... Kf8 {[%clk 0:00:03.9]} 46. b4
{[%clk 0:00:10.7]} 46... Ke7 {[%clk 0:00:03.9]} 47. Kg2 {[%clk 0:00:11.1]} 47...
Kd8 {[%clk 0:00:03.6]} 48. Kf3 {[%clk 0:00:10]} 48... Kc7 {[%clk 0:00:02.9]} 49.
Bd5 {[%clk 0:00:08.4]} 49... Nc3 {[%clk 0:00:03.3]} 50. Bc4 {[%clk 0:00:07]}
50... Kc6 {[%clk 0:00:03.7]} 51. Be1 {[%clk 0:00:06.2]} 51... Nb5 {[%clk
0:00:03.8]} 52. Bd2 {[%clk 0:00:06.2]} 52... Nbd4+ {[%clk 0:00:02.6]} 53. Ke4
{[%clk 0:00:06.6]} 53... Nb5 {[%clk 0:00:03.1]} 54. Bd5+ {[%clk 0:00:06.9]}
54... Kd7 {[%clk 0:00:03.8]} 55. Kd3 {[%clk 0:00:06.6]} 55... Nbc7 {[%clk
0:00:04.3]} 56. Kc4 {[%clk 0:00:06.3]} 56... Nxd5 {[%clk 0:00:04.4]} 57. Kxd5
{[%clk 0:00:06.8]} 57... Nc7+ {[%clk 0:00:05.1]} 58. Kc5 {[%clk 0:00:07.3]}
58... Ne6+ {[%clk 0:00:05.7]} 59. Kb6 {[%clk 0:00:07.8]} 59... Nd4 {[%clk
0:00:03]} 60. b5 {[%clk 0:00:08.1]} 60... Kc8 {[%clk 0:00:02.9]} 61. Be3 {[%clk
0:00:07.1]} 61... Nf5 {[%clk 0:00:03.5]} 62. Bf2 {[%clk 0:00:07.2]} 62... Ne7
{[%clk 0:00:04.1]} 63. Kc5 {[%clk 0:00:07.3]} 63... Nf5 {[%clk 0:00:03.2]} 64.
b6 {[%clk 0:00:06.8]} 64... Kb7 {[%clk 0:00:03.5]} 65. h5 {[%clk 0:00:06.7]}
65... Ne7 {[%clk 0:00:02.5]} 66. Kd6 {[%clk 0:00:06.5]} 66... Nf5+ {[%clk
0:00:02.7]} 67. Kd7 {[%clk 0:00:06.8]} 67... Kb8 {[%clk 0:00:03]} 68. g4 {[%clk
0:00:06.8]} 68... g6 {[%clk 0:00:02]} 69. gxf5 {[%clk 0:00:06.5]} 69... gxf5
{[%clk 0:00:02.3]} 70. Ke7 {[%clk 0:00:07]} 1-0

[Event "Early-Titled-Tuesday-Blitz-April-23-2024"]
[Site "Chess.com"]
[Date "2024.04.23"]
[Round "6"]
[White "Rud_Makarian"]
[Black "HansOnTwitch"]
[Result "1-0"]
[WhiteElo "3032"]
[BlackElo "3227"]
[TimeControl "180+1"]
[EndTime "9:09:51 PDT"]
[Termination "Rud_Makarian won by resignation"]

1. c4 {[%clk 0:03:00]} 1... Nf6 {[%clk 0:02:58.7]} 2. Nc3 {[%clk 0:02:59.8]}
2... e5 {[%clk 0:02:58.6]} 3. Nf3 {[%clk 0:02:59.8]} 3... Nc6 {[%clk 0:02:59.1]}
4. e3 {[%clk 0:03:00.1]} 4... Bb4 {[%clk 0:02:56.2]} 5. Qc2 {[%clk 0:02:58.7]}
5... Bxc3 {[%clk 0:02:56.2]} 6. Qxc3 {[%clk 0:02:59.5]} 6... Qe7 {[%clk
0:02:55.6]} 7. a3 {[%clk 0:02:59.2]} 7... d5 {[%clk 0:02:32.1]} 8. cxd5 {[%clk
0:02:59.9]} 8... Nxd5 {[%clk 0:02:32.7]} 9. Qb3 {[%clk 0:03:00]} 9... Nb6 {[%clk
0:02:28.6]} 10. Qc2 {[%clk 0:02:59.3]} 10... e4 {[%clk 0:02:24.2]} 11. Ng1
{[%clk 0:02:58.6]} 11... O-O {[%clk 0:02:22.9]} 12. b4 {[%clk 0:02:58.4]} 12...
Bf5 {[%clk 0:02:20]} 13. Bb2 {[%clk 0:02:57]} 13... a5 {[%clk 0:02:15.3]} 14. b5
{[%clk 0:02:52.7]} 14... Ne5 {[%clk 0:02:15.4]} 15. Rc1 {[%clk 0:02:49.6]} 15...
Nd3+ {[%clk 0:02:02.7]} 16. Bxd3 {[%clk 0:02:46.1]} 16... exd3 {[%clk
0:02:03.6]} 17. Qc3 {[%clk 0:02:18.7]} 17... f6 {[%clk 0:02:02.1]} 18. Nf3
{[%clk 0:02:18.5]} 18... Be4 {[%clk 0:01:53.4]} 19. O-O {[%clk 0:02:12.6]} 19...
Rfc8 {[%clk 0:01:08.9]} 20. Nd4 {[%clk 0:02:08.2]} 20... Qf7 {[%clk 0:01:06]}
21. Ba1 {[%clk 0:01:52.1]} 21... Na4 {[%clk 0:00:52]} 22. Qc4 {[%clk 0:01:50.9]}
22... Qxc4 {[%clk 0:00:48.6]} 23. Rxc4 {[%clk 0:01:51.5]} 23... Nb6 {[%clk
0:00:49.3]} 24. Rc5 {[%clk 0:01:48.8]} 24... Na4 {[%clk 0:00:44.6]} 25. Rc4
{[%clk 0:01:45.9]} 25... Nb6 {[%clk 0:00:44]} 26. Rc5 {[%clk 0:01:45.9]} 26...
Na4 {[%clk 0:00:40.5]} 27. Rcc1 {[%clk 0:01:45.9]} 27... c5 {[%clk 0:00:33]} 28.
bxc6 {[%clk 0:01:45.7]} 28... Bxc6 {[%clk 0:00:32.6]} 29. f3 {[%clk 0:01:42.6]}
29... Bd7 {[%clk 0:00:25.8]} 30. Kf2 {[%clk 0:01:41.7]} 30... b5 {[%clk
0:00:22.8]} 31. e4 {[%clk 0:01:06.4]} 31... b4 {[%clk 0:00:23.1]} 32. axb4
{[%clk 0:01:06.1]} 32... axb4 {[%clk 0:00:24]} 33. Rxc8+ {[%clk 0:01:06.4]}
33... Rxc8 {[%clk 0:00:23.8]} 34. Ke3 {[%clk 0:01:06.7]} 34... Rb8 {[%clk
0:00:21.5]} 35. Rb1 {[%clk 0:01:00.6]} 35... Nc5 {[%clk 0:00:21.5]} 36. Rc1
{[%clk 0:00:57.8]} 36... Rc8 {[%clk 0:00:19.8]} 37. g4 {[%clk 0:00:42.9]} 37...
Kf7 {[%clk 0:00:18.4]} 38. h4 {[%clk 0:00:43.1]} 38... b3 {[%clk 0:00:11.8]} 39.
g5 {[%clk 0:00:18]} 39... h6 {[%clk 0:00:06.9]} 40. gxf6 {[%clk 0:00:16.9]}
40... gxf6 {[%clk 0:00:07.8]} 41. h5 {[%clk 0:00:17.2]} 41... Ke7 {[%clk
0:00:06.8]} 42. Bb2 {[%clk 0:00:15.4]} 42... Kf7 {[%clk 0:00:03.8]} 43. Ba3
{[%clk 0:00:14.3]} 43... Ne6 {[%clk 0:00:02.9]} 44. Rxc8 {[%clk 0:00:13.3]}
44... Bxc8 {[%clk 0:00:03.8]} 45. Nxb3 {[%clk 0:00:13.5]} 45... Ng7 {[%clk
0:00:02.2]} 46. Nc5 {[%clk 0:00:12.3]} 46... Nxh5 {[%clk 0:00:02.6]} 47. Nxd3
{[%clk 0:00:12.8]} 47... Ng7 {[%clk 0:00:02.2]} 48. Nf4 {[%clk 0:00:12.3]} 48...
h5 {[%clk 0:00:02.4]} 49. d4 {[%clk 0:00:12]} 49... h4 {[%clk 0:00:02.8]} 50.
Kf2 {[%clk 0:00:11.4]} 50... Ne6 {[%clk 0:00:02.8]} 51. Nxe6 {[%clk 0:00:10.3]}
51... Bxe6 {[%clk 0:00:03.1]} 52. d5 {[%clk 0:00:09.2]} 52... Bd7 {[%clk
0:00:03.5]} 53. Bd6 {[%clk 0:00:09.2]} 53... Bb5 {[%clk 0:00:03.1]} 54. Bh2
{[%clk 0:00:07.9]} 54... Ba4 {[%clk 0:00:03]} 55. Ke3 {[%clk 0:00:07.7]} 55...
Bd1 {[%clk 0:00:02.5]} 56. f4 {[%clk 0:00:07.1]} 56... Bb3 {[%clk 0:00:02]} 57.
Kd4 {[%clk 0:00:07.1]} 57... Bd1 {[%clk 0:00:01.7]} 58. e5 {[%clk 0:00:07.3]}
58... fxe5+ {[%clk 0:00:02.6]} 59. fxe5 {[%clk 0:00:08.1]} 59... Bg4 {[%clk
0:00:02.9]} 60. Bf4 {[%clk 0:00:07.5]} 60... Ke7 {[%clk 0:00:03.4]} 61. Bg5+
{[%clk 0:00:07.5]} 61... Kd7 {[%clk 0:00:03.7]} 62. Bxh4 {[%clk 0:00:08.2]}
62... Bf5 {[%clk 0:00:03.9]} 63. Bg5 {[%clk 0:00:07.4]} 63... Bh3 {[%clk
0:00:04.3]} 64. Bd2 {[%clk 0:00:07.4]} 64... Bg4 {[%clk 0:00:04.7]} 65. Bb4
{[%clk 0:00:07.7]} 65... Bh3 {[%clk 0:00:05.2]} 66. Ke3 {[%clk 0:00:07.2]} 66...
Bg4 {[%clk 0:00:02.8]} 67. Kf4 {[%clk 0:00:07.2]} 67... Bh3 {[%clk 0:00:03.5]}
68. Kg5 {[%clk 0:00:05.5]} 68... Bg2 {[%clk 0:00:02.8]} 69. e6+ {[%clk
0:00:05.4]} 69... Ke8 {[%clk 0:00:02.5]} 70. d6 {[%clk 0:00:05.4]} 70... Bc6
{[%clk 0:00:02.7]} 71. Kf6 {[%clk 0:00:05.5]} 71... Ba4 {[%clk 0:00:03]} 72. Be1
{[%clk 0:00:05.2]} 72... Bb5 {[%clk 0:00:03.2]} 73. Bh4 {[%clk 0:00:05.3]} 73...
Ba4 {[%clk 0:00:03.6]} 74. Ke5 {[%clk 0:00:05.5]} 74... Bb5 {[%clk 0:00:04]} 75.
Kd4 {[%clk 0:00:05]} 75... Ba4 {[%clk 0:00:04.6]} 76. Kc5 {[%clk 0:00:05.6]} 1-0

[Event "Early-Titled-Tuesday-Blitz-April-23-2024"]
[Site "Chess.com"]
[Date "2024.04.23"]
[Round "6"]
[White "rhwr"]
[Black "VirtualCoach"]
[Result "0-1"]
[WhiteElo "2296"]
[BlackElo "2014"]
[TimeControl "180+1"]
[EndTime "9:09:51 PDT"]
[Termination "VirtualCoach won by checkmate"]

1. e4 {[%clk 0:03:00.9]} 1... c5 {[%clk 0:02:59.4]} 2. Be2 {[%clk 0:02:57.7]}
2... Nc6 {[%clk 0:02:58.2]} 3. f4 {[%clk 0:02:57.8]} 3... g6 {[%clk 0:02:56.8]}
4. Nf3 {[%clk 0:02:57.7]} 4... Bg7 {[%clk 0:02:56.9]} 5. c3 {[%clk 0:02:58.2]}
5... d6 {[%clk 0:02:47.2]} 6. O-O {[%clk 0:02:55.2]} 6... Nf6 {[%clk 0:02:47]}
7. d3 {[%clk 0:02:54.8]} 7... e5 {[%clk 0:02:46.2]} 8. Qe1 {[%clk 0:02:48.2]}
8... O-O {[%clk 0:02:42.8]} 9. Nbd2 {[%clk 0:02:33.1]} 9... Be6 {[%clk 0:02:33]}
10. Ng5 {[%clk 0:02:28]} 10... exf4 {[%clk 0:02:24]} 11. Nxe6 {[%clk 0:02:26.5]}
11... fxe6 {[%clk 0:02:24.9]} 12. Rxf4 {[%clk 0:02:25.2]} 12... e5 {[%clk
0:02:23.8]} 13. Rf1 {[%clk 0:02:24.7]} 13... b5 {[%clk 0:02:13.8]} 14. a4 {[%clk
0:02:22.9]} 14... Qb6 {[%clk 0:02:11.2]} 15. axb5 {[%clk 0:02:21.2]} 15... Qxb5
{[%clk 0:02:10.4]} 16. d4 {[%clk 0:02:20.4]} 16... Qb6 {[%clk 0:02:00.5]} 17. d5
{[%clk 0:02:17.9]} 17... Na5 {[%clk 0:01:57.4]} 18. Nc4 {[%clk 0:02:09]} 18...
Nxc4 {[%clk 0:01:54.1]} 19. Bxc4 {[%clk 0:02:09.5]} 19... Ng4 {[%clk 0:01:39.3]}
20. h3 {[%clk 0:02:02.1]} 20... Nf6 {[%clk 0:01:37.2]} 21. Ra6 {[%clk
0:02:00.5]} 21... Qc7 {[%clk 0:01:34.9]} 22. Rc6 {[%clk 0:01:59.6]} 22... Qe7
{[%clk 0:01:32.8]} 23. Bg5 {[%clk 0:01:57.8]} 23... h6 {[%clk 0:01:29.7]} 24.
Bc1 {[%clk 0:01:54.7]} 24... Rac8 {[%clk 0:01:26.2]} 25. Ra6 {[%clk 0:01:51.5]}
25... Nh5 {[%clk 0:01:19.5]} 26. Be2 {[%clk 0:01:33]} 26... Nf4 {[%clk
0:01:16.3]} 27. Bg4 {[%clk 0:01:30.9]} 27... Rb8 {[%clk 0:01:11.3]} 28. Kh2
{[%clk 0:01:12.5]} 28... h5 {[%clk 0:01:02.2]} 29. Bxf4 {[%clk 0:01:09.5]} 29...
hxg4 {[%clk 0:00:59.4]} 30. Bc1 {[%clk 0:01:08.1]} 30... gxh3 {[%clk 0:00:52.5]}
31. gxh3 {[%clk 0:01:06]} 31... Rxf1 {[%clk 0:00:49.1]} 32. Qxf1 {[%clk
0:01:05.8]} 32... Rf8 {[%clk 0:00:49.6]} 33. Qe1 {[%clk 0:01:01.4]} 33... Qf6
{[%clk 0:00:45.2]} 34. Rxa7 {[%clk 0:00:57.3]} 34... Qf3 {[%clk 0:00:36]} 35.
Bg5 {[%clk 0:00:46]} 35... Qd3 {[%clk 0:00:30.5]} 36. Kg2 {[%clk 0:00:34.2]}
36... Qf3+ {[%clk 0:00:19.2]} 37. Kh2 {[%clk 0:00:33.8]} 37... Qd3 {[%clk
0:00:19.2]} 38. Rb7 {[%clk 0:00:31]} 38... Rf1 {[%clk 0:00:16.8]} 39. Rb8+
{[%clk 0:00:24.2]} 39... Bf8 {[%clk 0:00:17.1]} 40. Qd2 {[%clk 0:00:12.8]} 40...
Qf3 {[%clk 0:00:12.4]} 41. Qg2 {[%clk 0:00:12.8]} 41... Rf2 {[%clk 0:00:11.8]}
42. Qxf2 {[%clk 0:00:11.2]} 42... Qxf2+ {[%clk 0:00:12.7]} 43. Kh1 {[%clk
0:00:11.6]} 43... Qf3+ {[%clk 0:00:12.8]} 44. Kh2 {[%clk 0:00:11.8]} 44... Kf7
{[%clk 0:00:13.1]} 45. Rb7+ {[%clk 0:00:11.3]} 45... Kg8 {[%clk 0:00:12.7]} 46.
Rb8 {[%clk 0:00:11.8]} 46... Qe2+ {[%clk 0:00:10.5]} 47. Kg3 {[%clk 0:00:11.1]}
47... Qxe4 {[%clk 0:00:10.4]} 48. Be7 {[%clk 0:00:10.8]} 48... Qf4+ {[%clk
0:00:10.3]} 49. Kg2 {[%clk 0:00:10.8]} 49... Qd2+ {[%clk 0:00:08.6]} 50. Kg3
{[%clk 0:00:10.8]} 50... Qd3+ {[%clk 0:00:08.6]} 51. Kg2 {[%clk 0:00:10.9]}
51... Qxd5+ {[%clk 0:00:08.8]} 52. Kg3 {[%clk 0:00:11.2]} 52... Qd3+ {[%clk
0:00:09.2]} 53. Kg2 {[%clk 0:00:11.4]} 53... Qe4+ {[%clk 0:00:09.8]} 54. Kg3
{[%clk 0:00:11.7]} 54... Qf4+ {[%clk 0:00:10.4]} 55. Kg2 {[%clk 0:00:11.8]}
55... Qf7 {[%clk 0:00:10.5]} 56. Bxf8 {[%clk 0:00:11]} 56... Qxf8 {[%clk
0:00:11]} 57. Rxf8+ {[%clk 0:00:10.6]} 57... Kxf8 {[%clk 0:00:11.9]} 58. Kf3
{[%clk 0:00:10.7]} 58... Ke7 {[%clk 0:00:12]} 59. Ke4 {[%clk 0:00:11.1]} 59...
Ke6 {[%clk 0:00:12.5]} 60. c4 {[%clk 0:00:11.6]} 60... g5 {[%clk 0:00:11.8]} 61.
b3 {[%clk 0:00:11.3]} 61... Kf6 {[%clk 0:00:11.9]} 62. Kd5 {[%clk 0:00:10.5]}
62... Kf5 {[%clk 0:00:12.3]} 63. Kxd6 {[%clk 0:00:11.4]} 63... e4 {[%clk
0:00:12.8]} 64. Kxc5 {[%clk 0:00:12.3]} 64... e3 {[%clk 0:00:13.4]} 65. b4
{[%clk 0:00:13.1]} 65... e2 {[%clk 0:00:14]} 66. b5 {[%clk 0:00:14]} 66... e1=Q
{[%clk 0:00:14.6]} 67. b6 {[%clk 0:00:14.9]} 67... Ke6 {[%clk 0:00:14.8]} 68. b7
{[%clk 0:00:15.8]} 68... Qe5+ {[%clk 0:00:14.9]} 69. Kb6 {[%clk 0:00:14.4]}
69... Qb8 {[%clk 0:00:15.8]} 70. c5 {[%clk 0:00:14.3]} 70... Kd7 {[%clk
0:00:16.1]} 71. c6+ {[%clk 0:00:15.2]} 71... Kd6 {[%clk 0:00:16.5]} 72. Kb5
{[%clk 0:00:14.3]} 72... Qc7 {[%clk 0:00:17]} 73. Ka6 {[%clk 0:00:12.4]} 73...
Qxc6+ {[%clk 0:00:17.2]} 74. Ka7 {[%clk 0:00:13.3]} 74... Qc7 {[%clk 0:00:16.7]}
75. h4 {[%clk 0:00:11.3]} 75... Qa5+ {[%clk 0:00:16]} 76. Kb8 {[%clk 0:00:11.2]}
76... Kc6 {[%clk 0:00:16.1]} 77. hxg5 {[%clk 0:00:10.3]} 77... Qc7+ {[%clk
0:00:17]} 78. Ka7 {[%clk 0:00:10.3]} 78... Qxb7# {[%clk 0:00:17.7]} 0-1